fUSD/lending_fUSD_20251127
["ID","MTS","AMOUNT","RATE_DAILY","PERIOD"]
[394992397,1764275433562,-352.51865958,0.00014863,2]
[394992409,1764275438196,-147.48134042,0.00014863,2]
[394992410,1764275438206,-500.0,0.00014863,2]
[394992411,1764275438216,-500.0,0.00014863,2]
[394992412,1764275438226,-323.61388965,0.00014863,2]
[394992413,1764275438236,-500.0,0.00014863,2]
[394992414,1764275438246,-500.0,0.00014863,2]
[394992415,1764275438256,-500.0,0.00014863,2]
[394992416,1764275438266,-500.0,0.00014863,2]
[394992417,1764275438276,-500.0,0.00014863,2]
[394992418,1764275438286,-500.0,0.00014863,2]
[394992419,1764275438296,-438.95213548,0.00014863,2]
[394992420,1764275438306,-500.0,0.00014863,2]
[394992421,1764275438316,-199.56064264,0.00014863,2]
[394992422,1764275438325,-500.0,0.00014863,2]
[394992423,1764275438335,-647.83006411,0.00014863,2]
[394992424,1764275438345,-406.63216189,0.00014863,2]
[394992425,1764275438355,-500.0,0.00014863,2]
[394992426,1764275438365,-500.0,0.00014863,2]
[394992427,1764275438374,-500.0,0.00014863,2]
[394992428,1764275438383,-500.0,0.00014863,2]
[394992429,1764275438393,-300.0,0.00014863,2]
[394992430,1764275438402,-500.0,0.00014863,2]
[394992431,1764275438412,-500.0,0.00014863,2]
[394992432,1764275438422,-500.0,0.00014863,2]
[394992433,1764275438431,-500.0,0.00014863,2]
[394992434,1764275438441,-500.0,0.00014863,2]
[394992435,1764275438451,-500.0,0.00014863,2]
[394992436,1764275438460,-151.0,0.00014864,2]
[394992437,1764275438470,-156.165699,0.00014864,2]
[394992438,1764275438478,-156.165699,0.00014864,2]
[394992439,1764275438488,-156.165699,0.00014864,2]
[394992440,1764275438497,-156.165699,0.00014864,2]
[394992441,1764275438507,-151.0,0.00014864,2]
[394992442,1764275438516,-1000.0,0.00014864,2]
[394992443,1764275438526,-103135.8591636,0.00014864,2]
[394992444,1764275438538,-1585.18189761,0.00014864,2]
[394992446,1764275440233,-5105.09987455,0.00014864,2]
[394992447,1764275440453,-2748.10369327,0.00014864,2]
[394992448,1764275440562,-428.85299988,0.00014864,2]
[394992471,1764275441841,2706.23257548,0.00013951,2]
[394992476,1764275446306,-653.0,0.00014864,2]
[394992477,1764275446362,-600.0,0.00014864,2]
[394992480,1764275468395,849.07742452,7.945e-05,2]
[394992481,1764275468418,10000.01,7.945e-05,2]
[394992482,1764275468439,4298.35724748,7.945e-05,2]
[394992483,1764275564769,1274.35,0.0001401,2]
[394992485,1764275754561,786.38,0.00013699,2]
[394992486,1764275904703,222.65612674,0.00014617,2]
[394992487,1764275907351,200.0,0.00014086,2]
[394992488,1764275973228,168.0,0.00014599,2]
[394992489,1764275974587,610.0,0.00014014,2]
[394992490,1764275978368,168.0,0.00014585,2]
[394992493,1764275993357,1699.19600828,0.00014664,2]
[394992499,1764276085730,2207.00995026,7.945e-05,2]
[394992501,1764276095096,5147.80404146,0.0001402,2]
[394992502,1764276095119,149.74595854,0.0001402,2]
[394992504,1764276117867,307.82286787,7.945e-05,2]
[394992506,1764276149521,178.46698357,7.945e-05,2]
[394992507,1764276150326,2751.0,0.00014004,2]
[394992508,1764276169937,4638.861,0.00014664,2]
[394992509,1764276246890,529.6394,0.00014664,2]
[394992510,1764276283726,4831.5096,0.00014664,2]
[394992511,1764276283748,8725.0274,0.00014664,2]
[394992512,1764276303810,150.0,0.000144,2]
[394992513,1764276307383,150.0,0.000144,2]
[394992514,1764276307521,150.0,0.000144,2]
[394992515,1764276312746,150.0,0.000144,2]
[394992516,1764276314233,150.0,0.000144,2]
[394992517,1764276314483,150.0,0.000144,2]
[394992518,1764276314574,150.0,0.000144,2]
[394992519,1764276321225,150.0,0.000144,2]
[394992520,1764276321264,74.9826,0.000144,2]
[394992521,1764276321286,75.0174,0.000144,2]
[394992522,1764276321323,195.4840363,0.000144,2]
[394992523,1764276328187,150.0,0.000144,2]
[394992524,1764276328343,150.0,0.000144,2]
[394992525,1764276328907,1000.0,0.00014011,2]
[394992527,1764276332507,1504.8317,0.00014664,2]
[394992528,1764276344984,2500.0,0.00014664,2]
[394992531,1764276394597,2000.0,0.00014125,2]
[394992532,1764276396576,222.65612674,0.00014716,2]
[394992534,1764276410875,2202.02073696,0.00014664,2]
[394992535,1764276410899,1690.47926304,0.00014664,2]
[394992540,1764276453684,8309.53073696,0.00014664,2]
[394992541,1764276453706,10000.01,0.00014664,2]
[394992542,1764276453728,10000.01,0.00014664,2]
[394992543,1764276453759,5075.37056304,0.00014664,2]
[394992546,1764276461150,853.42028,0.0001472,2]
[394992548,1764276472181,1000.0,0.00014664,2]
[394992551,1764276503758,1529.27640747,0.00014675,2]
[394992554,1764276514995,2500.0,0.00014664,2]
[394992576,1764276631339,-200.0,0.00014745,2]
[394992577,1764276631349,-250.0,0.00014745,2]
[394992578,1764276631358,-368.76312057,0.00014745,2]
[394992579,1764276631368,-300.0,0.00014754,2]
[394992580,1764276631377,-1200.0,0.00014754,2]
[394992581,1764276631387,-300.0,0.00014755,2]
[394992582,1764276631396,-488.3323414,0.00014755,2]
[394992583,1764276631406,-500.0,0.00014755,2]
[394992584,1764276631416,-500.0,0.00014755,2]
[394992585,1764276631425,-581.11753153,0.00014755,2]
[394992586,1764276631435,-151.0,0.00014755,2]
[394992587,1764276631444,-1400.0,0.00014755,2]
[394992588,1764276631454,-150.0,0.00014762,2]
[394992589,1764276631463,-1013.56,0.00014763,2]
[394992590,1764276631478,-576.52972276,0.00014763,2]
[394992591,1764276631487,-500.0,0.00014763,2]
[394992592,1764276631497,-500.0,0.00014763,2]
[394992593,1764276631506,-500.0,0.00014763,2]
[394992594,1764276631516,-263.40968678,0.00014763,2]
[394992595,1764276631525,-500.0,0.00014763,2]
[394992596,1764276631536,-500.0,0.00014763,2]
[394992597,1764276631546,-500.0,0.00014763,2]
[394992598,1764276631557,-500.0,0.00014763,2]
[394992599,1764276631566,-500.0,0.00014763,2]
[394992600,1764276631576,-500.0,0.00014763,2]
[394992601,1764276631585,-500.0,0.00014763,2]
[394992602,1764276631594,-500.0,0.00014763,2]
[394992603,1764276631604,-500.0,0.00014763,2]
[394992605,1764276631613,-500.0,0.00014763,2]
[394992607,1764276631622,-500.0,0.00014763,2]
[394992608,1764276631633,-500.0,0.00014763,2]
[394992611,1764276631643,-500.0,0.00014763,2]
[394992613,1764276631652,-500.0,0.00014763,2]
[394992614,1764276631662,-500.0,0.00014763,2]
[394992615,1764276631674,-500.0,0.00014763,2]
[394992617,1764276631683,-500.0,0.00014763,2]
[394992618,1764276631692,-500.0,0.00014763,2]
[394992619,1764276631701,-500.0,0.00014763,2]
[394992620,1764276631711,-500.0,0.00014763,2]
[394992621,1764276631721,-500.0,0.00014763,2]
[394992622,1764276631730,-500.0,0.00014763,2]
[394992623,1764276631739,-500.0,0.00014763,2]
[394992624,1764276631748,-490.77909168,0.00014763,2]
[394992625,1764276631757,-176.63949435,0.00014763,2]
[394992626,1764276631766,-500.0,0.00014763,2]
[394992627,1764276631775,-536.53829949,0.00014763,2]
[394992628,1764276631784,-170.74226421,0.00014763,2]
[394992629,1764276631793,-500.0,0.00014763,2]
[394992630,1764276631803,-500.0,0.00014763,2]
[394992631,1764276631812,-500.0,0.00014763,2]
[394992632,1764276631821,-500.0,0.00014763,2]
[394992633,1764276631830,-500.0,0.00014763,2]
[394992634,1764276631839,-500.0,0.00014763,2]
[394992635,1764276631848,-500.0,0.00014763,2]
[394992636,1764276631857,-1000.0,0.00014764,2]
[394992637,1764276631870,-229833.1215,0.00014764,2]
[394992638,1764276631879,-168.0,0.00014775,2]
[394992639,1764276631887,-200.0,0.00014864,2]
[394992640,1764276631896,-200.0,0.00014864,2]
[394992641,1764276631905,-16531.3877916,0.00014864,2]
[394992642,1764276631914,-150.0,0.00014864,2]
[394992643,1764276631923,-205.90777453,0.00014864,2]
[394992644,1764276631933,-264.01132078,0.00014864,2]
[394992645,1764276631942,-150.0,0.00014864,2]
[394992646,1764276631951,-13549.8536195,0.00014864,2]
[394992647,1764276631961,-3003.37827363,0.00014864,2]
[394992648,1764276631972,-150.0,0.00014864,2]
[394992649,1764276631981,-196.44177563,0.00014864,2]
[394992650,1764276631990,-150.0,0.00014864,2]
[394992651,1764276631999,-150.0,0.00014864,2]
[394992652,1764276632009,-500.0,0.00014864,2]
[394992653,1764276632020,-150.0,0.00014864,2]
[394992654,1764276632029,-150.0,0.00014864,2]
[394992655,1764276632038,-150.0,0.00014864,2]
[394992656,1764276632048,-198.2572427,0.00014864,2]
[394992657,1764276632060,-150.0,0.00014864,2]
[394992658,1764276632069,-169.23779635,0.00014864,2]
[394992659,1764276632078,-150.0,0.00014864,2]
[394992660,1764276632087,-150.0,0.00014864,2]
[394992661,1764276632096,-150.0,0.00014864,2]
[394992662,1764276632105,-150.0,0.00014864,2]
[394992663,1764276632114,-150.0,0.00014864,2]
[394992664,1764276632123,-500.0,0.00014864,2]
[394992665,1764276632132,-150.0,0.00014864,2]
[394992666,1764276632141,-150.0,0.00014864,2]
[394992667,1764276632150,-1000.0,0.00014864,2]
[394992668,1764276632159,-742.75758282,0.00014864,2]
[394992669,1764276632169,-23798.8904505,0.00014864,2]
[394992670,1764276632177,-151.0,0.00014864,2]
[394992671,1764276632186,-214.82083119,0.00014864,2]
[394992672,1764276632197,-150.0,0.00014864,2]
[394992673,1764276632207,-150.0,0.00014864,2]
[394992674,1764276632217,-947.0,0.00014864,2]
[394992675,1764276632226,-150.0,0.00014864,2]
[394992676,1764276632236,-150.0,0.00014864,2]
[394992677,1764276632246,-150.0,0.00014864,2]
[394992678,1764276632257,-853.42029,0.0001487,2]
[394992679,1764276632267,-1778.93568054,0.00014907,2]
[394992680,1764276632276,-1778.93568053,0.00014907,2]
[394992681,1764276632286,-1529.27640743,0.00014922,2]
[394992682,1764276632295,-150.0,0.00014933,2]
[394992683,1764276632305,-168.0,0.00014958,2]
[394992684,1764276632314,-500.0,0.00014963,2]
[394992685,1764276632323,-500.0,0.00014963,2]
[394992686,1764276632333,-500.0,0.00014963,2]
[394992687,1764276632342,-500.0,0.00014963,2]
[394992688,1764276632351,-500.0,0.00014963,2]
[394992689,1764276632361,-500.0,0.00014963,2]
[394992690,1764276632371,-500.0,0.00014963,2]
[394992691,1764276632381,-500.0,0.00014963,2]
[394992692,1764276632389,-500.0,0.00014963,2]
[394992693,1764276632402,-500.0,0.00014963,2]
[394992694,1764276632411,-91340.0506047,0.00014964,2]
[394992695,1764276632420,-151.0,0.00014964,2]
[394992696,1764276632429,-155.744383,0.00014964,2]
[394992697,1764276632438,-151.0,0.00014964,2]
[394992698,1764276632447,-151.0,0.00014964,2]
[394992699,1764276632457,-151.0,0.00014964,2]
[394992700,1764276632468,-151.0,0.00014964,2]
[394992701,1764276632477,-151.0,0.00014964,2]
[394992702,1764276632486,-233.651191,0.00014964,2]
[394992703,1764276632495,-166.68,0.00014967,2]
[394992704,1764276632505,-161.0067067,0.00014973,2]
[394992705,1764276632514,-150.0,0.00015001,2]
[394992706,1764276632523,-150.0,0.00015001,2]
[394992707,1764276632532,-153.75790581,0.00015001,2]
[394992708,1764276632542,-150.0,0.00015001,2]
[394992709,1764276632552,-500.0,0.00015001,2]
[394992710,1764276632562,-150.0,0.00015001,2]
[394992711,1764276632572,-151.01043138,0.00015001,2]
[394992712,1764276632581,-150.0,0.00015001,2]
[394992713,1764276632590,-150.0,0.00015001,2]
[394992714,1764276632600,-150.0,0.00015001,2]
[394992715,1764276632609,-500.0,0.00015001,2]
[394992716,1764276632618,-150.0,0.00015001,2]
[394992717,1764276632627,-150.0,0.00015001,2]
[394992718,1764276632646,-947.0,0.00015001,2]
[394992719,1764276632657,-200.0,0.00015001,2]
[394992720,1764276632668,-150.0,0.00015001,2]
[394992721,1764276632677,-150.0,0.00015001,2]
[394992722,1764276632686,-168.0,0.00015019,2]
[394992723,1764276632696,-166.66,0.00015028,2]
[394992724,1764276632705,-168.0,0.0001503,2]
[394992725,1764276632714,-1013.56,0.00015037,2]
[394992726,1764276632724,-196.10043537,0.00015038,2]
[394992727,1764276632733,-300.0,0.00015042,2]
[394992728,1764276632743,-259.7037513,0.00015063,2]
[394992729,1764276632752,-151.0,0.00015064,2]
[394992730,1764276632761,-620.16737975,0.00015064,2]
[394992731,1764276632771,-151.0,0.00015068,2]
[394992732,1764276632780,-151.0,0.00015068,2]
[394992733,1764276632790,-151.0,0.00015068,2]
[394992734,1764276632799,-276.475164,0.00015068,2]
[394992735,1764276632808,-6299.2175283,0.0001508,2]
[394992736,1764276632818,-3003.37827361,0.0001509,2]
[394992737,1764276632827,-319.10774003,0.00015096,2]
[394992738,1764276632836,-853.42028,0.0001512,2]
[394992739,1764276633040,-378.0,0.00015135,2]
[394992740,1764276633050,-378.0,0.00015138,2]
[394992741,1764276633059,-150.0,0.00015138,2]
[394992742,1764276633069,-246.48435637,0.00015138,2]
[394992743,1764276633078,-231.71112977,0.00015138,2]
[394992744,1764276633087,-500.0,0.00015138,2]
[394992745,1764276633097,-152.75787537,0.00015138,2]
[394992746,1764276633106,-150.0,0.00015138,2]
[394992747,1764276633115,-200.89295245,0.00015138,2]
[394992748,1764276633124,-199.4528281,0.00015138,2]
[394992749,1764276633138,-500.0,0.00015138,2]
[394992750,1764276633147,-150.0,0.00015138,2]
[394992751,1764276633156,-150.0,0.00015138,2]
[394992752,1764276633165,-947.0,0.00015138,2]
[394992753,1764276633175,-154.0,0.00015138,2]
[394992754,1764276633185,-150.0,0.00015138,2]
[394992755,1764276633194,-168.0,0.00015166,2]
[394992756,1764276633204,-1529.27640743,0.00015169,2]
[394992757,1764276633213,-215.4729117,0.00015187,2]
[394992758,1764276633223,-378.0,0.00015192,2]
[394992759,1764276633232,-233.16679676,0.00015275,2]
[394992760,1764276633242,-312.94382989,0.00015275,2]
[394992761,1764276633251,-300.0,0.00015275,2]
[394992762,1764276633260,-150.0,0.00015275,2]
[394992763,1764276633269,-150.0,0.00015275,2]
[394992764,1764276633279,-947.0,0.00015275,2]
[394992765,1764276633288,-150.0,0.00015275,2]
[394992766,1764276633299,-1168.46783441,0.000153,2]
[394992767,1764276633308,-177.78,0.000153,2]
[394992768,1764276633318,-977.62,0.000153,2]
[394992769,1764276633328,-150.0,0.000153,2]
[394992770,1764276633337,-959.67,0.000153,2]
[394992771,1764276633346,-150.0,0.000153,2]
[394992772,1764276633355,-151.0,0.000153,2]
[394992773,1764276633364,-151.0,0.000153,2]
[394992774,1764276633374,-151.0,0.000153,2]
[394992775,1764276633384,-177.78,0.000153,2]
[394992776,1764276633393,-489.38,0.000153,2]
[394992777,1764276633403,-177.78,0.000153,2]
[394992778,1764276633412,-1013.56,0.00015311,2]
[394992779,1764276633421,-3003.37827361,0.00015316,2]
[394992780,1764276633430,-166.857306,0.00015336,2]
[394992781,1764276633440,-378.0,0.00015336,2]
[394992782,1764276633450,-151.0,0.00015337,2]
[394992783,1764276633459,-151.0,0.00015337,2]
[394992784,1764276633468,-151.0,0.00015337,2]
[394992785,1764276633478,-378.0,0.00015337,2]
[394992786,1764276633488,-500.0,0.00015343,2]
[394992787,1764276633497,-853.42029,0.0001537,2]
[394992788,1764276633506,-504.34341446,0.000154,2]
[394992789,1764276633515,-9687.82020906,0.000154,2]
[394992790,1764276633525,-378.0,0.00015408,2]
[394992791,1764276633534,-150.0,0.00015412,2]
[394992792,1764276633544,-947.0,0.00015412,2]
[394992793,1764276633554,-150.0,0.00015412,2]
[394992794,1764276633563,-1529.27640743,0.00015417,2]
[394992795,1764276633573,-150.0,0.00015467,2]
[394992796,1764276633582,-239.3,0.00015525,2]
[394992797,1764276633592,-3003.37827361,0.00015543,2]
[394992798,1764276633601,-250.0,0.00015549,2]
[394992799,1764276633610,-947.0,0.00015549,2]
[394992800,1764276633620,-172.69779722,0.00015549,2]
[394992801,1764276633629,-168.0,0.00015569,2]
[394992802,1764276633638,-1013.56,0.00015585,2]
[394992803,1764276633648,-378.0,0.00015597,2]
[394992804,1764276633657,-1631.0,0.000156,2]
[394992805,1764276633666,-1000.0,0.000156,2]
[394992806,1764276633676,-378.0,0.00015605,2]
[394992807,1764276633685,-853.42029,0.0001562,2]
[394992808,1764276633694,-1529.27640743,0.00015664,2]
[394992809,1764276633703,-378.0,0.00015665,2]
[394992810,1764276633712,-378.0,0.00015676,2]
[394992811,1764276633721,-947.0,0.00015686,2]
[394992812,1764276633730,-378.0,0.00015691,2]
[394992813,1764276633739,-35954.0,0.00015699,2]
[394992814,1764276633749,-378.0,0.00015701,2]
[394992815,1764276633759,-378.0,0.00015705,2]
[394992816,1764276633768,-1000.0,0.00015762,2]
[394992817,1764276633778,-151.0,0.00015768,2]
[394992818,1764276633787,-151.0,0.00015768,2]
[394992819,1764276633796,-151.0,0.00015768,2]
[394992820,1764276633805,-151.0,0.00015768,2]
[394992821,1764276633814,-151.0,0.00015768,2]
[394992822,1764276633823,-151.0,0.00015768,2]
[394992823,1764276633832,-12457.29302702,0.00015769,2]
[394992824,1764276633841,-3003.37827361,0.00015769,2]
[394992825,1764276633851,-168.0,0.00015786,2]
[394992826,1764276633860,-947.0,0.00015823,2]
[394992827,1764276633869,-1600.0,0.00015845,2]
[394992828,1764276633878,-1013.56,0.00015859,2]
[394992829,1764276633888,-300.0,0.00015869,2]
[394992830,1764276633898,-853.42028,0.0001587,2]
[394992831,1764276633909,-255.0,0.00015884,2]
[394992832,1764276633918,-168.31044422,0.000159,2]
[394992833,1764276633928,-184.7719424,0.000159,2]
[394992834,1764276633938,-227.54527672,0.000159,2]
[394992835,1764276633949,-1529.27640743,0.00015911,2]
[394992836,1764276633958,-947.0,0.0001596,2]
[394992837,1764276633967,-500.0,0.00015973,2]
[394992838,1764276633976,-500.0,0.00015973,2]
[394992839,1764276633985,-502.89704796,0.00015973,2]
[394992840,1764276633995,-500.01,0.00015973,2]
[394992841,1764276634003,-501.07335338,0.00015973,2]
[394992842,1764276634013,-162.60635992,0.00015973,2]
[394992843,1764276634023,-300.68097483,0.00015973,2]
[394992844,1764276634032,-500.0,0.00015973,2]
[394992845,1764276634040,-500.0,0.00015973,2]
[394992846,1764276634049,-500.0,0.00015973,2]
[394992847,1764276634059,-500.0,0.00015973,2]
[394992848,1764276634069,-500.0,0.00015973,2]
[394992849,1764276634079,-500.0,0.00015973,2]
[394992850,1764276634088,-500.0,0.00015973,2]
[394992851,1764276634097,-500.0,0.00015973,2]
[394992852,1764276634107,-500.0,0.00015973,2]
[394992853,1764276634118,-3003.37827361,0.00015995,2]
[394992854,1764276634127,-500.0,0.00015999,2]
[394992855,1764276634136,-500.0,0.00015999,2]
[394992856,1764276634145,-500.0,0.00015999,2]
[394992857,1764276634154,-500.0,0.00015999,2]
[394992858,1764276634164,-500.0,0.00015999,2]
[394992859,1764276634174,-500.0,0.00015999,2]
[394992860,1764276634184,-500.0,0.00015999,2]
[394992861,1764276634193,-179.35,0.00015999,2]
[394992862,1764276634202,-500.0,0.00015999,2]
[394992863,1764276634211,-500.0,0.00015999,2]
[394992864,1764276634221,-506.8857899,0.00015999,2]
[394992865,1764276634230,-588.47923029,0.00015999,2]
[394992866,1764276634239,-500.0,0.00015999,2]
[394992867,1764276634249,-500.0,0.00015999,2]
[394992868,1764276634260,-170.54211254,0.00015999,2]
[394992869,1764276634269,-2629.0,0.00016,2]
[394992870,1764276634278,-150.0,0.00016,2]
[394992871,1764276634287,-150.0,0.00016,2]
[394992872,1764276634296,-150.0,0.00016,2]
[394992873,1764276634305,-150.0,0.00016,2]
[394992874,1764276634315,-150.0,0.00016,2]
[394992875,1764276634323,-134013.99441209,0.00016,2]
[394992876,1764276634338,-5084.40182731,0.00016,2]
[394992877,1764276634352,-1023.31953828,0.00016,2]
[394992878,1764276634367,-2662.04405425,0.00016,2]
[394992879,1764276634378,-614.50389,0.00016,2]
[394992880,1764276635120,3019.6162,0.00014664,2]
[394992908,1764276637519,-192.97090635,0.00015035,2]
[394992910,1764276637529,-310.08368987,0.000153,2]
[394992912,1764276637538,-151.0,0.00015336,2]
[394992914,1764276637547,-512.42051724,0.00016,2]
[394992921,1764276639437,-435.52069291,0.000159,2]
[394992922,1764276639446,-27049.99298606,0.00016,2]
[394992923,1764276639457,-45830.0,0.00016,2]
[394992924,1764276639468,-1876.4,0.00016,2]
[394992925,1764276639602,-300.0,0.00016,2]
[394992926,1764276639657,-1226.838994,0.00016,2]
[394992929,1764276641311,1000.0,0.00014664,2]
[394992938,1764276642953,-155.82,0.00015641,2]
[394992939,1764276642963,-1864.38,0.00016,2]
[394992940,1764276642974,-1510.13526797,0.00016,2]
[394992941,1764276642985,-3755.54023686,0.00016,2]
[394992942,1764276642997,-1335.22,0.00016,2]
[394992943,1764276643015,-435.52069291,0.000159,2]
[394992944,1764276643025,-6478.79436259,0.00016,2]
[394992945,1764276643655,-215.4729117,0.00015276,2]
[394992946,1764276643665,-1866.3634883,0.00016,2]
[394992947,1764276643676,-1417.05,0.00016,2]
[394992948,1764276643687,-4386.95,0.00016,2]
[394992949,1764276643698,-536.67740501,0.00016,2]
[394992956,1764276645484,-885.63108795,0.00016,2]
[394992957,1764276645541,-378.02326408,0.00016,2]
[394992958,1764276650091,97.69711253,0.00014664,2]
[394992959,1764276650119,10000.01,0.00014664,2]
[394992960,1764276650144,10000.01,0.00014664,2]
[394992961,1764276650170,10000.01,0.00014664,2]
[394992962,1764276650196,10000.01,0.00014664,2]
[394992963,1764276650222,10000.01,0.00014664,2]
[394992964,1764276650252,10000.01,0.00014664,2]
[394992965,1764276650280,10000.01,0.00014664,2]
[394992966,1764276650304,10000.01,0.00014664,2]
[394992967,1764276650328,10000.01,0.00014664,2]
[394992968,1764276650357,669902.21288747,0.00014664,2]
[394992969,1764276665683,1000.0,0.00014664,2]
[394992973,1764276993126,150.86,0.00019178,30]
[394992977,1764277392898,166.66,0.00014332,2]
[394992978,1764277393147,166.66,0.00014634,2]
[394992981,1764277513369,150.0,0.000144,2]
[394992982,1764277517250,150.0,0.000144,2]
[394992983,1764277519724,260.18846656,0.000144,2]
[394992984,1764277519832,150.0,0.000144,2]
[394992985,1764277525588,150.0,0.000144,2]
[394992986,1764277526943,150.0,0.000144,2]
[394992987,1764277662895,243.5,0.00011937,2]
[394992998,1764277831527,-166.66,0.00014936,2]
[394992999,1764277831536,-195.0,0.00014939,2]
[394993000,1764277831545,-2187.07865149,0.00014941,2]
[394993001,1764277831556,-572.575638,0.00014941,2]
[394993002,1764277831568,-806.74571051,0.00014941,2]
[394993003,1764277831577,-150.0,0.00014995,2]
[394993004,1764277831586,-250.0,0.00015117,2]
[394993005,1764277831595,-500.0,0.00015235,2]
[394993006,1764277831605,-166.66,0.00015238,2]
[394993007,1764277831614,-166.66,0.00015539,2]
[394993008,1764277831624,-300.0,0.00015638,2]
[394993009,1764277831635,-409.93428949,0.00015638,2]
[394993010,1764277831651,-790.06571051,0.00015638,2]
[394993011,1764277831660,-226.30757637,0.00015639,2]
[394993012,1764277831671,-1680.66735613,0.00015639,2]
[394993013,1764277831682,-3849.0799145,0.00015639,2]
[394993014,1764277831691,-166.66,0.00015673,2]
[394993015,1764277831701,-222.65612674,0.00015798,2]
[394993016,1764277831710,-14329.8317778,0.00015799,2]
[394993017,1764277831720,-6431.72277246,0.00015799,2]
[394993018,1764277831732,-1994.57683916,0.00015799,2]
[394993019,1764277831743,-4955.5914,0.00015799,2]
[394993020,1764277831757,-466.3369905,0.00015799,2]
[394993021,1764277831773,-1458.40986332,0.00015799,2]
[394993022,1764277831784,-701.61386136,0.00015799,2]
[394993023,1764277831795,-569.1863868,0.00015799,2]
[394993024,1764277831807,-2151.7138018,0.00015799,2]
[394993025,1764277831818,-1225.1918068,0.00015799,2]
[394993027,1764277831827,-1000.0,0.000158,2]
[394993029,1764277831836,-126.1781932,0.000158,2]
[394993034,1764277837545,-639.88094719,0.000158,2]
[394993035,1764277837558,-1152.59879177,0.000158,2]
[394993036,1764277837567,-954.97,0.000158,2]
[394993037,1764277837577,-476.61,0.000158,2]
[394993038,1764277837586,-166.66,0.00015841,2]
[394993039,1764277837595,-200.0,0.00015872,2]
[394993040,1764277837608,-500.0,0.00015873,2]
[394993041,1764277837619,-500.0,0.00015873,2]
[394993042,1764277837629,-500.0,0.00015873,2]
[394993043,1764277837639,-500.0,0.00015873,2]
[394993044,1764277837648,-300.0,0.00015896,2]
[394993045,1764277837658,-1463.848,0.00015897,2]
[394993046,1764277837667,-184.008,0.00015897,2]
[394993047,1764277837677,-4028.63562157,0.00015897,2]
[394993048,1764277837689,-2139.40000018,0.00015897,2]
[394993049,1764277837706,-3704.96,0.00015897,2]
[394993050,1764277837718,-937.5,0.00015897,2]
[394993057,1764277839650,-872.73,0.00015897,2]
[394993059,1764277839662,-2934.50000002,0.00015897,2]
[394993060,1764277839674,-354.96003,0.00015897,2]
[394993061,1764277839708,-724.3019951,0.00015897,2]
[394993062,1764277839718,-196.10043536,0.00015897,2]
[394993063,1764277839728,-500.0,0.00015898,2]
[394993064,1764277839741,-500.0,0.00015898,2]
[394993065,1764277839750,-165.69518681,0.00015898,2]
[394993066,1764277839760,-500.0,0.00015898,2]
[394993067,1764277839769,-500.0,0.00015898,2]
[394993068,1764277839778,-500.0,0.00015898,2]
[394993069,1764277839788,-634.40166325,0.00015898,2]
[394993070,1764277839798,-442.95397694,0.00015898,2]
[394993071,1764277839809,-57.04602306,0.00015898,2]
[394993072,1764277839819,-500.0,0.00015898,2]